[Event "*** SCC Grand Prix: Titled Tuesday Blitz"]
[Site "Chess.com"]
[Date "2020.06.09"]
[Round "7"]
[White "MathiasWomacka"]
[Black "Siniauski"]
[Result "1/2-1/2"]
[WhiteElo "2400"]
[BlackElo "2505"]
[TimeControl "180+1"]
[EndTime "10:20:04 PDT"]
[Termination "Game drawn - insufficient material"]

1. e4 {[%clk 0:03:00.2]} 1... e6 {[%clk 0:03:00]} 2. d4 {[%clk 0:02:59.2]} 2...
d5 {[%clk 0:03:00.6]} 3. Nd2 {[%clk 0:02:59.2]} 3... c5 {[%clk 0:03:00.1]} 4.
exd5 {[%clk 0:02:58.9]} 4... Qxd5 {[%clk 0:03:01]} 5. Ngf3 {[%clk 0:02:58.1]}
5... cxd4 {[%clk 0:03:00.5]} 6. Bc4 {[%clk 0:02:57.9]} 6... Qd8 {[%clk
0:03:00.5]} 7. O-O {[%clk 0:02:56.9]} 7... Nc6 {[%clk 0:03:00.6]} 8. Nb3 {[%clk
0:02:56.8]} 8... a6 {[%clk 0:03:00.3]} 9. Nbxd4 {[%clk 0:02:56.8]} 9... Nxd4
{[%clk 0:03:00.3]} 10. Nxd4 {[%clk 0:02:57.7]} 10... Bd6 {[%clk 0:03:00]} 11.
Re1 {[%clk 0:02:46.3]} 11... Ne7 {[%clk 0:02:59.3]} 12. Be3 {[%clk 0:02:29.6]}
12... O-O {[%clk 0:02:55.1]} 13. Qf3 {[%clk 0:02:27.2]} 13... Bxh2+ {[%clk
0:02:39.6]} 14. Kxh2 {[%clk 0:02:24]} 14... Qc7+ {[%clk 0:02:38.5]} 15. Bf4
{[%clk 0:02:04.8]} 15... Qxc4 {[%clk 0:02:37.6]} 16. Rad1 {[%clk 0:02:05.1]}
16... Ng6 {[%clk 0:02:31]} 17. Bg3 {[%clk 0:01:58.8]} 17... Qd5 {[%clk
0:01:40.2]} 18. Qxd5 {[%clk 0:01:41.4]} 18... exd5 {[%clk 0:01:41.1]} 19. Bd6
{[%clk 0:01:41.1]} 19... Rd8 {[%clk 0:01:34.5]} 20. Bc7 {[%clk 0:01:40.9]} 20...
Rf8 {[%clk 0:01:10.9]} 21. Bd6 {[%clk 0:01:40.7]} 21... Bg4 {[%clk 0:00:57.2]}
22. Bxf8 {[%clk 0:01:17.8]} 22... Bxd1 {[%clk 0:00:57.1]} 23. Bxg7 {[%clk
0:01:17.8]} 23... Bxc2 {[%clk 0:00:55.2]} 24. Bf6 {[%clk 0:01:06.3]} 24... Ba4
{[%clk 0:00:48.4]} 25. Nf5 {[%clk 0:00:50.4]} 25... Bd7 {[%clk 0:00:36.3]} 26.
Ne7+ {[%clk 0:00:42.6]} 26... Kf8 {[%clk 0:00:30.8]} 27. Nxd5 {[%clk 0:00:41.6]}
27... Re8 {[%clk 0:00:21]} 28. Rxe8+ {[%clk 0:00:35.3]} 28... Bxe8 {[%clk
0:00:21.9]} 29. Bd4 {[%clk 0:00:28.4]} 29... Bc6 {[%clk 0:00:19.6]} 30. Nf6
{[%clk 0:00:27.1]} 30... h6 {[%clk 0:00:18.1]} 31. f3 {[%clk 0:00:27.2]} 31...
Ke7 {[%clk 0:00:08.5]} 32. Ng8+ {[%clk 0:00:24.1]} 32... Ke6 {[%clk 0:00:09.1]}
33. Nxh6 {[%clk 0:00:25]} 33... Kd5 {[%clk 0:00:09.7]} 34. Bc3 {[%clk
0:00:24.3]} 34... Be8 {[%clk 0:00:09]} 35. Nf5 {[%clk 0:00:23.9]} 35... b5
{[%clk 0:00:05.5]} 36. g4 {[%clk 0:00:22.6]} 36... Nf4 {[%clk 0:00:03.3]} 37.
Ne3+ {[%clk 0:00:16.5]} 37... Kc5 {[%clk 0:00:02.5]} 38. Bf6 {[%clk 0:00:14.6]}
38... Bd7 {[%clk 0:00:02]} 39. Kg3 {[%clk 0:00:14.1]} 39... Nd3 {[%clk
0:00:02.5]} 40. f4 {[%clk 0:00:11.2]} 40... a5 {[%clk 0:00:02.4]} 41. g5 {[%clk
0:00:10.9]} 41... a4 {[%clk 0:00:02.9]} 42. f5 {[%clk 0:00:11.2]} 42... b4
{[%clk 0:00:02.8]} 43. g6 {[%clk 0:00:11]} 43... fxg6 {[%clk 0:00:03.7]} 44.
fxg6 {[%clk 0:00:11.7]} 44... a3 {[%clk 0:00:03.9]} 45. bxa3 {[%clk 0:00:11.4]}
45... bxa3 {[%clk 0:00:04.8]} 46. Be7+ {[%clk 0:00:11.8]} 46... Kd4 {[%clk
0:00:02.3]} 47. Bxa3 {[%clk 0:00:12.7]} 47... Kxe3 {[%clk 0:00:01.9]} 48. g7
{[%clk 0:00:12.9]} 48... Be6 {[%clk 0:00:02.5]} 49. Bd6 {[%clk 0:00:11.4]} 49...
Bg8 {[%clk 0:00:02.7]} 50. a4 {[%clk 0:00:10.5]} 50... Kd4 {[%clk 0:00:03.2]}
51. a5 {[%clk 0:00:10.4]} 51... Kd5 {[%clk 0:00:03.5]} 52. a6 {[%clk 0:00:07.8]}
52... Kc6 {[%clk 0:00:04]} 53. a7 {[%clk 0:00:05.5]} 53... Kb7 {[%clk
0:00:04.9]} 54. Kg4 {[%clk 0:00:05.1]} 54... Kxa7 {[%clk 0:00:04.1]} 55. Kg5
{[%clk 0:00:04.9]} 55... Kb7 {[%clk 0:00:03.9]} 56. Kf6 {[%clk 0:00:04.8]} 56...
Kc6 {[%clk 0:00:03.7]} 57. Ke7 {[%clk 0:00:04]} 57... Nf2 {[%clk 0:00:01.8]} 58.
Kf8 {[%clk 0:00:03.9]} 58... Be6 {[%clk 0:00:02.2]} 59. g8=Q {[%clk 0:00:03.5]}
59... Bxg8 {[%clk 0:00:02.6]} 60. Kxg8 {[%clk 0:00:04.4]} 1/2-1/2

[Event "*** SCC Grand Prix: Titled Tuesday Blitz"]
[Site "Chess.com"]
[Date "2020.06.09"]
[Round "7"]
[White "AlexSuv"]
[Black "dey2580"]
[Result "0-1"]
[WhiteElo "2629"]
[BlackElo "2458"]
[TimeControl "180+1"]
[EndTime "10:20:06 PDT"]
[Termination "dey2580 won on time"]

1. d4 {[%clk 0:03:00.9]} 1... Nf6 {[%clk 0:02:59.7]} 2. c4 {[%clk 0:03:01.3]}
2... e6 {[%clk 0:03:00]} 3. Nc3 {[%clk 0:03:01.6]} 3... Bb4 {[%clk 0:02:58.7]}
4. e3 {[%clk 0:03:01.9]} 4... O-O {[%clk 0:02:55.8]} 5. Ne2 {[%clk 0:03:02.3]}
5... c5 {[%clk 0:02:54.6]} 6. a3 {[%clk 0:03:00.9]} 6... Bxc3+ {[%clk
0:02:52.8]} 7. Nxc3 {[%clk 0:03:01.5]} 7... cxd4 {[%clk 0:02:52.9]} 8. exd4
{[%clk 0:02:59.9]} 8... d5 {[%clk 0:02:53]} 9. Be3 {[%clk 0:02:43.1]} 9... Nc6
{[%clk 0:02:52.5]} 10. Be2 {[%clk 0:02:38.6]} 10... dxc4 {[%clk 0:02:47.1]} 11.
Bxc4 {[%clk 0:02:38.5]} 11... b6 {[%clk 0:02:47.2]} 12. O-O {[%clk 0:02:37.3]}
12... Bb7 {[%clk 0:02:47.5]} 13. Rc1 {[%clk 0:02:35.5]} 13... Rc8 {[%clk
0:02:47.1]} 14. Ba2 {[%clk 0:02:26.9]} 14... Ne7 {[%clk 0:02:44.6]} 15. Bg5
{[%clk 0:02:20]} 15... Nf5 {[%clk 0:02:32.4]} 16. d5 {[%clk 0:01:48.7]} 16...
exd5 {[%clk 0:02:17.3]} 17. Qf3 {[%clk 0:01:31.1]} 17... Nd4 {[%clk 0:02:08.2]}
18. Qd3 {[%clk 0:01:19.7]} 18... Ne6 {[%clk 0:02:04.3]} 19. Bxf6 {[%clk
0:01:19.1]} 19... Qxf6 {[%clk 0:02:03.9]} 20. Nxd5 {[%clk 0:00:49.7]} 20... Qg5
{[%clk 0:01:48]} 21. f4 {[%clk 0:00:42.5]} 21... Nxf4 {[%clk 0:01:34]} 22. Nxf4
{[%clk 0:00:30.7]} 22... Rxc1 {[%clk 0:01:32.5]} 23. Rxc1 {[%clk 0:00:29.7]}
23... Qxf4 {[%clk 0:01:32.6]} 24. Rf1 {[%clk 0:00:30.3]} 24... Qg5 {[%clk
0:01:27.2]} 25. Qe2 {[%clk 0:00:30.8]} 25... h6 {[%clk 0:01:03.4]} 26. Qf2
{[%clk 0:00:30.8]} 26... Bd5 {[%clk 0:01:00.8]} 27. Bb1 {[%clk 0:00:28.7]} 27...
Rc8 {[%clk 0:00:53.8]} 28. h3 {[%clk 0:00:28.7]} 28... Rc1 {[%clk 0:00:52.9]}
29. Bd3 {[%clk 0:00:27.8]} 29... Rxf1+ {[%clk 0:00:51.3]} 30. Bxf1 {[%clk
0:00:28.6]} 30... Qe5 {[%clk 0:00:50.2]} 31. Qd2 {[%clk 0:00:27.9]} 31... g5
{[%clk 0:00:46.4]} 32. Qf2 {[%clk 0:00:25.2]} 32... Kg7 {[%clk 0:00:45.6]} 33.
Qd2 {[%clk 0:00:24.8]} 33... f5 {[%clk 0:00:29.7]} 34. Qf2 {[%clk 0:00:20.7]}
34... Kf6 {[%clk 0:00:28.1]} 35. Qd2 {[%clk 0:00:20.1]} 35... f4 {[%clk
0:00:24.9]} 36. Qb4 {[%clk 0:00:20.2]} 36... Qe3+ {[%clk 0:00:21.9]} 37. Kh2
{[%clk 0:00:19.4]} 37... Qg3+ {[%clk 0:00:20.8]} 38. Kg1 {[%clk 0:00:18.9]}
38... Qe3+ {[%clk 0:00:20.6]} 39. Kh2 {[%clk 0:00:19]} 39... Qc5 {[%clk
0:00:20.7]} 40. Qa4 {[%clk 0:00:16.9]} 40... a5 {[%clk 0:00:18]} 41. Qe8 {[%clk
0:00:16.4]} 41... Be6 {[%clk 0:00:14.4]} 42. Qh8+ {[%clk 0:00:15.8]} 42... Ke7
{[%clk 0:00:12.7]} 43. Qg7+ {[%clk 0:00:15.4]} 43... Kd6 {[%clk 0:00:12.6]} 44.
Qxh6 {[%clk 0:00:14]} 44... Qe5 {[%clk 0:00:11.7]} 45. Kg1 {[%clk 0:00:12.8]}
45... Qe3+ {[%clk 0:00:11.2]} 46. Kh2 {[%clk 0:00:11.5]} 46... Qe5 {[%clk
0:00:11.1]} 47. Qf8+ {[%clk 0:00:09.9]} 47... Kc6 {[%clk 0:00:10.8]} 48. Qe8+
{[%clk 0:00:09.6]} 48... Kc7 {[%clk 0:00:10.3]} 49. Qe7+ {[%clk 0:00:09.2]}
49... Kc6 {[%clk 0:00:10.7]} 50. Qe8+ {[%clk 0:00:09.2]} 50... Kc5 {[%clk
0:00:10.1]} 51. Qb5+ {[%clk 0:00:08.2]} 51... Kd4 {[%clk 0:00:09.9]} 52. Qxb6+
{[%clk 0:00:08.7]} 52... Ke4 {[%clk 0:00:09.1]} 53. Kg1 {[%clk 0:00:04.5]} 53...
Bd5 {[%clk 0:00:09.1]} 54. Qf2 {[%clk 0:00:03.4]} 54... Kf5 {[%clk 0:00:08.7]}
55. Bd3+ {[%clk 0:00:03]} 55... Kf6 {[%clk 0:00:08]} 56. Qb6+ {[%clk 0:00:03.6]}
56... Ke7 {[%clk 0:00:08.5]} 57. Qa7+ {[%clk 0:00:03.3]} 57... Kd8 {[%clk
0:00:08.5]} 58. Qc5 {[%clk 0:00:02.4]} 58... Qe1+ {[%clk 0:00:07.1]} 59. Kh2
{[%clk 0:00:02.7]} 59... Qg3+ {[%clk 0:00:07.4]} 60. Kg1 {[%clk 0:00:02.6]}
60... Qe1+ {[%clk 0:00:07.4]} 61. Kh2 {[%clk 0:00:02.4]} 61... Qe5 {[%clk
0:00:08]} 62. Qxa5+ {[%clk 0:00:01.8]} 62... Ke7 {[%clk 0:00:08]} 63. Qd2 {[%clk
0:00:02.3]} 63... f3+ {[%clk 0:00:07.9]} 64. Kg1 {[%clk 0:00:01.8]} 64... fxg2
{[%clk 0:00:07.5]} 65. Qe2 {[%clk 0:00:01.5]} 65... Kd6 {[%clk 0:00:07.3]} 66.
Qxe5+ {[%clk 0:00:01.4]} 66... Kxe5 {[%clk 0:00:08.2]} 67. b4 {[%clk 0:00:01.4]}
67... Kf4 {[%clk 0:00:08.3]} 0-1

[Event "*** SCC Grand Prix: Titled Tuesday Blitz"]
[Site "Chess.com"]
[Date "2020.06.09"]
[Round "7"]
[White "Jospem"]
[Black "Khvicha_Supatashvili"]
[Result "1-0"]
[WhiteElo "2865"]
[BlackElo "2723"]
[TimeControl "180+1"]
[EndTime "10:20:07 PDT"]
[Termination "Jospem won on time"]

1. c4 {[%clk 0:03:00]} 1... e5 {[%clk 0:02:59]} 2. Nc3 {[%clk 0:02:59.7]} 2...
Nc6 {[%clk 0:02:58.7]} 3. Nf3 {[%clk 0:03:00.1]} 3... Nf6 {[%clk 0:02:57.6]} 4.
a3 {[%clk 0:03:00.3]} 4... g6 {[%clk 0:02:55.4]} 5. e3 {[%clk 0:02:59.8]} 5...
Bg7 {[%clk 0:02:54.5]} 6. Qc2 {[%clk 0:03:00.4]} 6... O-O {[%clk 0:02:53.4]} 7.
Be2 {[%clk 0:03:01]} 7... d5 {[%clk 0:02:47.8]} 8. cxd5 {[%clk 0:02:58.9]} 8...
Nxd5 {[%clk 0:02:47]} 9. d3 {[%clk 0:02:58.4]} 9... a5 {[%clk 0:02:37.6]} 10.
Bd2 {[%clk 0:02:57.7]} 10... Nb6 {[%clk 0:02:34.2]} 11. b3 {[%clk 0:02:55.7]}
11... f5 {[%clk 0:02:30.7]} 12. O-O {[%clk 0:02:51]} 12... Be6 {[%clk
0:02:29.9]} 13. Rad1 {[%clk 0:02:33.1]} 13... Kh8 {[%clk 0:02:28.1]} 14. Bc1
{[%clk 0:02:32.3]} 14... Bg8 {[%clk 0:02:23.1]} 15. d4 {[%clk 0:02:28.6]} 15...
e4 {[%clk 0:02:20.9]} 16. Nd2 {[%clk 0:02:22.4]} 16... Ne7 {[%clk 0:02:20.2]}
17. Bb2 {[%clk 0:02:18.3]} 17... Ned5 {[%clk 0:02:19.5]} 18. Nc4 {[%clk
0:02:17]} 18... c6 {[%clk 0:02:18.8]} 19. Ne5 {[%clk 0:02:13.4]} 19... Qe7
{[%clk 0:02:16.7]} 20. Nxd5 {[%clk 0:02:12]} 20... Nxd5 {[%clk 0:02:15.2]} 21.
Bc4 {[%clk 0:02:08.5]} 21... Bf6 {[%clk 0:02:11.4]} 22. Rde1 {[%clk 0:02:07.9]}
22... Rac8 {[%clk 0:02:01.9]} 23. a4 {[%clk 0:02:04.1]} 23... b5 {[%clk
0:01:51.8]} 24. Be2 {[%clk 0:02:03.4]} 24... Nb4 {[%clk 0:01:46.9]} 25. Qd2
{[%clk 0:02:02]} 25... bxa4 {[%clk 0:01:44.1]} 26. bxa4 {[%clk 0:02:01.1]} 26...
c5 {[%clk 0:01:43.9]} 27. f4 {[%clk 0:01:35.6]} 27... cxd4 {[%clk 0:01:40.4]}
28. Bxd4 {[%clk 0:01:33.7]} 28... Rc2 {[%clk 0:01:25.8]} 29. Qd1 {[%clk
0:01:30.8]} 29... Rfc8 {[%clk 0:01:25.5]} 30. Qa1 {[%clk 0:01:25.2]} 30... Kg7
{[%clk 0:01:22.4]} 31. Bd1 {[%clk 0:01:14.5]} 31... Rd2 {[%clk 0:00:55.2]} 32.
Re2 {[%clk 0:01:05.3]} 32... Rxe2 {[%clk 0:00:52.6]} 33. Bxe2 {[%clk 0:01:06.2]}
33... Rc2 {[%clk 0:00:51.8]} 34. Bb5 {[%clk 0:00:58.5]} 34... Ra2 {[%clk
0:00:42.6]} 35. Qd1 {[%clk 0:00:58.4]} 35... Nc2 {[%clk 0:00:41.4]} 36. Rf2
{[%clk 0:00:38.9]} 36... Nxd4 {[%clk 0:00:38.3]} 37. Qxd4 {[%clk 0:00:39.8]}
37... Rxf2 {[%clk 0:00:29.5]} 38. Kxf2 {[%clk 0:00:40.7]} 38... g5 {[%clk
0:00:26.6]} 39. g3 {[%clk 0:00:34.9]} 39... gxf4 {[%clk 0:00:26.5]} 40. gxf4
{[%clk 0:00:34.5]} 40... Be6 {[%clk 0:00:22]} 41. Qc3 {[%clk 0:00:31.6]} 41...
Qa7 {[%clk 0:00:11.9]} 42. Kg3 {[%clk 0:00:21.4]} 42... h5 {[%clk 0:00:09.4]}
43. h4 {[%clk 0:00:19.9]} 43... Qe7 {[%clk 0:00:08.7]} 44. Kh3 {[%clk
0:00:18.5]} 44... Kh6 {[%clk 0:00:08.4]} 45. Qe1 {[%clk 0:00:08.2]} 45... Bxe5
{[%clk 0:00:08.2]} 46. fxe5 {[%clk 0:00:08.2]} 46... f4+ {[%clk 0:00:08.7]} 47.
Kh2 {[%clk 0:00:08.9]} 47... f3 {[%clk 0:00:08]} 48. Qg3 {[%clk 0:00:09.2]}
48... Qg7 {[%clk 0:00:04.7]} 49. Qxg7+ {[%clk 0:00:05.3]} 49... Kxg7 {[%clk
0:00:04.5]} 50. Kg3 {[%clk 0:00:06.2]} 50... Kg6 {[%clk 0:00:03.5]} 51. Kf4
{[%clk 0:00:06.5]} 51... Bh3 {[%clk 0:00:01.8]} 52. Kg3 {[%clk 0:00:04.2]} 1-0

[Event "*** SCC Grand Prix: Titled Tuesday Blitz"]
[Site "Chess.com"]
[Date "2020.06.09"]
[Round "7"]
[White "MF1966Idrisov"]
[Black "Efremov_Vlad"]
[Result "0-1"]
[WhiteElo "2262"]
[BlackElo "2178"]
[TimeControl "180+1"]
[EndTime "10:20:08 PDT"]
[Termination "Efremov_Vlad won on time"]

1. Nf3 {[%clk 0:03:00.9]} 1... d5 {[%clk 0:02:59.5]} 2. b3 {[%clk 0:03:00.5]}
2... Nf6 {[%clk 0:02:55.7]} 3. Bb2 {[%clk 0:03:00.4]} 3... e6 {[%clk 0:02:53.7]}
4. e3 {[%clk 0:03:00.6]} 4... Be7 {[%clk 0:02:52.2]} 5. d4 {[%clk 0:03:01]} 5...
b6 {[%clk 0:02:49.3]} 6. Bd3 {[%clk 0:03:01.3]} 6... Bb7 {[%clk 0:02:49.4]} 7.
Nbd2 {[%clk 0:03:01.8]} 7... Nbd7 {[%clk 0:02:49.3]} 8. O-O {[%clk 0:03:02.4]}
8... Ne4 {[%clk 0:02:48.8]} 9. Ne5 {[%clk 0:03:02.3]} 9... O-O {[%clk
0:02:26.2]} 10. Nxd7 {[%clk 0:02:51.4]} 10... Qxd7 {[%clk 0:02:25.8]} 11. Nxe4
{[%clk 0:02:50.6]} 11... dxe4 {[%clk 0:02:25.4]} 12. Be2 {[%clk 0:02:50.4]}
12... f5 {[%clk 0:02:18.3]} 13. c4 {[%clk 0:02:44.5]} 13... Bf6 {[%clk
0:02:16.4]} 14. Qc2 {[%clk 0:02:43.6]} 14... Kh8 {[%clk 0:02:00.8]} 15. Rad1
{[%clk 0:02:42.5]} 15... Qf7 {[%clk 0:01:59.7]} 16. Rd2 {[%clk 0:02:39.7]} 16...
g5 {[%clk 0:01:55.3]} 17. d5 {[%clk 0:02:34.5]} 17... e5 {[%clk 0:01:48.3]} 18.
Rfd1 {[%clk 0:02:11]} 18... Rad8 {[%clk 0:01:27.2]} 19. d6 {[%clk 0:02:08.6]}
19... c5 {[%clk 0:01:26.1]} 20. f3 {[%clk 0:01:50.6]} 20... exf3 {[%clk
0:01:14.5]} 21. Bxf3 {[%clk 0:01:49.6]} 21... e4 {[%clk 0:01:07.8]} 22. Be2
{[%clk 0:01:45.3]} 22... f4 {[%clk 0:01:07.5]} 23. Bxf6+ {[%clk 0:01:31.8]}
23... Qxf6 {[%clk 0:01:06.5]} 24. Qb2 {[%clk 0:01:31.6]} 24... fxe3 {[%clk
0:00:58]} 25. Rc2 {[%clk 0:01:20.4]} 25... Kg8 {[%clk 0:00:24.3]} 26. Qxf6
{[%clk 0:01:04.2]} 26... Rxf6 {[%clk 0:00:23.9]} 27. d7 {[%clk 0:01:04.4]} 27...
Kf8 {[%clk 0:00:22.4]} 28. Bg4 {[%clk 0:01:00.8]} 28... Ke7 {[%clk 0:00:21.9]}
29. Re2 {[%clk 0:00:59.6]} 29... Rf4 {[%clk 0:00:16.3]} 30. h3 {[%clk
0:00:58.9]} 30... h5 {[%clk 0:00:14.7]} 31. Bxh5 {[%clk 0:00:56.5]} 31... Rxd7
{[%clk 0:00:15]} 32. Rxd7+ {[%clk 0:00:55.7]} 32... Kxd7 {[%clk 0:00:15.6]} 33.
Rxe3 {[%clk 0:00:55.7]} 33... Kd6 {[%clk 0:00:14]} 34. Rg3 {[%clk 0:00:43]}
34... Rf5 {[%clk 0:00:12.1]} 35. Bg6 {[%clk 0:00:41.1]} 35... Re5 {[%clk
0:00:11.9]} 36. Re3 {[%clk 0:00:39.7]} 36... Ke7 {[%clk 0:00:11]} 37. Kh2 {[%clk
0:00:35.2]} 37... Kf6 {[%clk 0:00:11.2]} 38. Bh7 {[%clk 0:00:33.9]} 38... Re7
{[%clk 0:00:11]} 39. Bg8 {[%clk 0:00:33]} 39... Ke5 {[%clk 0:00:08.9]} 40. Kg3
{[%clk 0:00:27.8]} 40... Rg7 {[%clk 0:00:08.6]} 41. Bd5 {[%clk 0:00:22.3]} 41...
Bxd5 {[%clk 0:00:09.1]} 42. cxd5 {[%clk 0:00:21.2]} 42... Kxd5 {[%clk
0:00:09.8]} 43. Kg4 {[%clk 0:00:20.3]} 43... Kd4 {[%clk 0:00:09.9]} 44. Re1
{[%clk 0:00:20.4]} 44... e3 {[%clk 0:00:07.7]} 45. Rd1+ {[%clk 0:00:19.7]} 45...
Kc3 {[%clk 0:00:07.9]} 46. Kf3 {[%clk 0:00:19.9]} 46... Re7 {[%clk 0:00:07.7]}
47. Ke2 {[%clk 0:00:19.2]} 47... Kb2 {[%clk 0:00:07.7]} 48. Rd3 {[%clk
0:00:16.9]} 48... Kxa2 {[%clk 0:00:07.7]} 49. g3 {[%clk 0:00:16.1]} 49... b5
{[%clk 0:00:06.7]} 50. h4 {[%clk 0:00:16.2]} 50... gxh4 {[%clk 0:00:05.9]} 51.
gxh4 {[%clk 0:00:16.5]} 51... a5 {[%clk 0:00:05.6]} 52. h5 {[%clk 0:00:15.5]}
52... Rh7 {[%clk 0:00:05.2]} 53. Rd5 {[%clk 0:00:15]} 53... Kxb3 {[%clk
0:00:04]} 54. Rxc5 {[%clk 0:00:15.1]} 54... Kb4 {[%clk 0:00:04.7]} 55. Re5
{[%clk 0:00:12.8]} 55... a4 {[%clk 0:00:04.8]} 56. Re4+ {[%clk 0:00:12.8]} 56...
Kb3 {[%clk 0:00:03.4]} 57. Rxe3+ {[%clk 0:00:12.4]} 57... Ka2 {[%clk 0:00:03.8]}
58. Rh3 {[%clk 0:00:12.3]} 58... b4 {[%clk 0:00:02.8]} 59. h6 {[%clk 0:00:12.2]}
59... b3 {[%clk 0:00:03]} 60. Kd3 {[%clk 0:00:12.4]} 60... b2 {[%clk 0:00:02.7]}
61. Rh2 {[%clk 0:00:09]} 61... Ka1 {[%clk 0:00:02.5]} 0-1

[Event "*** SCC Grand Prix: Titled Tuesday Blitz"]
[Site "Chess.com"]
[Date "2020.06.09"]
[Round "7"]
[White "Hrant_ChessMood"]
[Black "wonderfultime"]
[Result "0-1"]
[WhiteElo "3073"]
[BlackElo "3010"]
[TimeControl "180+1"]
[EndTime "10:20:11 PDT"]
[Termination "wonderfultime won by checkmate"]

1. d4 {[%clk 0:03:00.9]} 1... d5 {[%clk 0:03:00.2]} 2. c4 {[%clk 0:03:01.3]}
2... c6 {[%clk 0:03:00.4]} 3. Nc3 {[%clk 0:03:00.9]} 3... Nf6 {[%clk 0:03:00.8]}
4. e3 {[%clk 0:03:01.5]} 4... a6 {[%clk 0:03:01.2]} 5. Nf3 {[%clk 0:02:59.3]}
5... Bf5 {[%clk 0:03:01.2]} 6. Qb3 {[%clk 0:02:54.4]} 6... Ra7 {[%clk
0:03:01.1]} 7. Nh4 {[%clk 0:02:54.4]} 7... Be4 {[%clk 0:02:55]} 8. Nxe4 {[%clk
0:02:48.3]} 8... Nxe4 {[%clk 0:02:54.7]} 9. Nf3 {[%clk 0:02:40.1]} 9... e6
{[%clk 0:02:44.3]} 10. Bd3 {[%clk 0:02:38.5]} 10... Nf6 {[%clk 0:02:20.5]} 11.
O-O {[%clk 0:02:37.7]} 11... Bd6 {[%clk 0:02:20.3]} 12. Qc2 {[%clk 0:02:32.8]}
12... Nbd7 {[%clk 0:02:18]} 13. c5 {[%clk 0:02:20.8]} 13... Bc7 {[%clk
0:02:17.9]} 14. b4 {[%clk 0:02:21.4]} 14... e5 {[%clk 0:02:15.2]} 15. dxe5
{[%clk 0:02:19]} 15... Nxe5 {[%clk 0:02:14.1]} 16. Nxe5 {[%clk 0:02:07.5]} 16...
Bxe5 {[%clk 0:02:15]} 17. Bb2 {[%clk 0:02:08.2]} 17... Qe7 {[%clk 0:02:10.9]}
18. h3 {[%clk 0:01:46.6]} 18... O-O {[%clk 0:02:09.5]} 19. Rab1 {[%clk
0:01:38.2]} 19... g6 {[%clk 0:01:56.6]} 20. a4 {[%clk 0:01:37.9]} 20... Re8
{[%clk 0:01:48.6]} 21. Rfd1 {[%clk 0:01:37.6]} 21... Kg7 {[%clk 0:01:45.7]} 22.
Bc3 {[%clk 0:01:33.5]} 22... Nd7 {[%clk 0:01:41.7]} 23. Bd4 {[%clk 0:01:24.5]}
23... Qf6 {[%clk 0:01:40.3]} 24. Qc3 {[%clk 0:00:58]} 24... Raa8 {[%clk
0:01:38.1]} 25. Rb3 {[%clk 0:00:52.5]} 25... Re7 {[%clk 0:01:24.6]} 26. Be2
{[%clk 0:00:50.5]} 26... h5 {[%clk 0:01:19.1]} 27. Bxe5 {[%clk 0:00:41.1]} 27...
Nxe5 {[%clk 0:01:16.1]} 28. Rd4 {[%clk 0:00:40.9]} 28... Nd7 {[%clk 0:01:12.3]}
29. Rf4 {[%clk 0:00:26.5]} 29... Qxc3 {[%clk 0:00:57]} 30. Rxc3 {[%clk
0:00:27.4]} 30... Rae8 {[%clk 0:00:57.4]} 31. Rd4 {[%clk 0:00:26.9]} 31... Re4
{[%clk 0:00:55.6]} 32. Kf1 {[%clk 0:00:17.5]} 32... Nf8 {[%clk 0:00:50.3]} 33.
Rxe4 {[%clk 0:00:14.7]} 33... Rxe4 {[%clk 0:00:50]} 34. Rb3 {[%clk 0:00:15.3]}
34... Nd7 {[%clk 0:00:46.8]} 35. Bd3 {[%clk 0:00:15.6]} 35... Re8 {[%clk
0:00:42.6]} 36. Rb1 {[%clk 0:00:11.5]} 36... a5 {[%clk 0:00:34.4]} 37. bxa5
{[%clk 0:00:11.5]} 37... Nxc5 {[%clk 0:00:34.8]} 38. Be2 {[%clk 0:00:11.2]}
38... Ra8 {[%clk 0:00:35]} 39. a6 {[%clk 0:00:10.1]} 39... Nxa6 {[%clk
0:00:32.7]} 40. Rxb7 {[%clk 0:00:06.6]} 40... Nc5 {[%clk 0:00:32.8]} 41. Rc7
{[%clk 0:00:06.1]} 41... Rxa4 {[%clk 0:00:31.3]} 42. Bf3 {[%clk 0:00:03.2]}
42... Ra1+ {[%clk 0:00:30.3]} 43. Ke2 {[%clk 0:00:03.6]} 43... Ra2+ {[%clk
0:00:30.7]} 44. Kf1 {[%clk 0:00:03.5]} 44... Nd3 {[%clk 0:00:03.8]} 45. Rxc6
{[%clk 0:00:02.5]} 45... Rxf2+ {[%clk 0:00:03.5]} 46. Kg1 {[%clk 0:00:02.9]}
46... Rd2 {[%clk 0:00:04.4]} 47. Rd6 {[%clk 0:00:01.5]} 47... Nb4 {[%clk
0:00:04.2]} 48. e4 {[%clk 0:00:01.5]} 48... d4 {[%clk 0:00:04.3]} 49. e5 {[%clk
0:00:02.2]} 49... Kf8 {[%clk 0:00:04.6]} 50. Rd7 {[%clk 0:00:02.1]} 50... Ke8
{[%clk 0:00:04.7]} 51. Rd6 {[%clk 0:00:02.8]} 51... Ke7 {[%clk 0:00:04.9]} 52.
Rb6 {[%clk 0:00:03.2]} 52... Nd3 {[%clk 0:00:04.9]} 53. Rb7+ {[%clk 0:00:03.9]}
53... Ke6 {[%clk 0:00:05.4]} 54. Rb6+ {[%clk 0:00:02.2]} 54... Kxe5 {[%clk
0:00:05.9]} 55. Rb5+ {[%clk 0:00:03.1]} 55... Kf4 {[%clk 0:00:05.9]} 56. Kh2
{[%clk 0:00:02.8]} 56... Ne5 {[%clk 0:00:06]} 57. Bd5 {[%clk 0:00:03]} 57... h4
{[%clk 0:00:06.2]} 58. Rb4 {[%clk 0:00:02.7]} 58... g5 {[%clk 0:00:06.5]} 59.
Ra4 {[%clk 0:00:02.9]} 59... g4 {[%clk 0:00:06.9]} 60. hxg4 {[%clk 0:00:02.6]}
60... Nxg4+ {[%clk 0:00:07.8]} 61. Kh3 {[%clk 0:00:03.2]} 61... Kg5 {[%clk
0:00:07.9]} 62. Ra5 {[%clk 0:00:02.8]} 62... f5 {[%clk 0:00:07.4]} 63. Bf3
{[%clk 0:00:02.7]} 63... Nf2+ {[%clk 0:00:07.5]} 64. Kh2 {[%clk 0:00:03]} 64...
Rb2 {[%clk 0:00:05.8]} 65. Ra8 {[%clk 0:00:02.7]} 65... Rb1 {[%clk 0:00:05.6]}
66. Rg8+ {[%clk 0:00:03.2]} 66... Kf4 {[%clk 0:00:05.8]} 67. Rd8 {[%clk
0:00:02.1]} 67... Rh1# {[%clk 0:00:05.4]} 0-1